[Event "Elitserien Allsvenskan 2017-18"]
[Site "Lund"]
[Date "2017.10.22"]
[Round "3"]
[White "Malm Lindberg, Henrik"]
[Black "Hansen, Mads"]
[Result "0-1"]
[ECO "C96"]
[WhiteElo "2229"]
[BlackElo "2393"]
[Annotator "NA"]
[PlyCount "68"]
[EventDate "2017.??.??"]
[EventCountry "SWE"]
[SourceTitle "playchess.com"]
[Source "ChessBase"]
[SourceQuality "1"]
[TimeControl "40/5400+30:1800+30"]

1. e4 {[%emt 0:00:00]} e5 {[%emt 0:00:07]} 2. Nf3 {[%emt 0:00:00]} Nc6 {[%emt 0:00:04]} 3. Bb5 {[%emt 0:00:00]} a6 {[%emt 0:00:42]} 4. Ba4 {[%emt 0:00:00]} Nf6 $14 {[%emt 0:00:04]} 5. O-O {[%emt 0:00:08]} Be7 {[%emt 0:00:05]} 6. Re1 {[%emt 0:00:13]} b5 {[%emt 0:00:06]} 7. Bb3 {[%emt 0:00:07]} O-O {[%emt 0:00:03]} 8. c3 {[%emt 0:00:27]} d6 9. h3 Na5 10. Bc2 c5 11. d4 Nd7 {[%emt 0:04:59]} 12. dxc5 dxc5 13. Nbd2 Bb7 14. Nf1 Nc4 15. Ng3 Nd6 16. h4 Qc7 17. Bg5 Rfe8 18. Nh2 Rad8 19. Qg4 Nf6 20. Bxf6 Bxf6 21. Nh5 Qe7 22. Nf1 g6 23. Nxf6+ Qxf6 24. Ne3 h5 25. Qg5 Nxe4 26. Bxe4 Qxg5 27. hxg5 Bxe4 28. Rad1 Bd3 29. f3 e4 30. f4 f6 31. gxf6 Rf8 32. g3 Rxf6 33. Nc2 h4 34. Rxe4 Rfd6 0-1

[Event "Elitserien Allsvenskan 2017-18"]
[Site "Lund"]
[Date "2017.10.22"]
[Round "3"]
[White "Eklund, Joel"]
[Black "Thornblad, Erik"]
[Result "0-1"]
[ECO "A45"]
[WhiteElo "2226"]
[BlackElo "2087"]
[Annotator "NA"]
[PlyCount "78"]
[EventDate "2017.??.??"]
[EventCountry "SWE"]
[SourceTitle "playchess.com"]
[Source "ChessBase"]
[SourceQuality "1"]
[TimeControl "40/5400+30:1800+30"]

1. d4 {[%emt 0:00:00]} Nf6 {[%emt 0:00:11]} 2. Bg5 {[%emt 0:00:00]} e6 {[%emt 0:03:26]} 3. e3 {[%emt 0:00:04]} c5 {[%emt 0:00:52]} 4. Nd2 {[%emt 0:00:11]} d5 {[%emt 0:03:56]} 5. c3 {[%emt 0:00:22]} Nc6 {[%emt 0:02:16]} 6. f4 {[%emt 0:00:36]} Be7 {[%emt 0:01:53]} 7. Bd3 {[%emt 0:00:20]} Bd7 {[%emt 0:02:35]} 8. Ngf3 {[%emt 0:00:27]} Rc8 {[%emt 0:03:03]} 9. O-O {[%emt 0:00:30]} cxd4 {[%emt 0:14:15]} 10. exd4 {[%emt 0:00:21]} O-O {[%emt 0:06:50]} 11. Qe2 {[%emt 0:00:21]} a6 {[%emt 0:06:16]} 12. Ne5 {[%emt 0:04:08]} b5 {[%emt 0:03:35]} 13. Rf3 {[%emt 0:17:31]} ({Jedoch nicht} 13. Bxf6 $6 Bxf6 14. Nxd7 (14. Qh5 g6 $11) 14... Qxd7 $14) 13... g6 {[%emt 0:05:02]} 14. h4 $16 {[%emt 0:10:43]} ({White should play} 14. a3) 14... b4 {[%emt 0:07:52]} 15. Bxa6 {[%emt 0:08:31]} bxc3 {[%emt 0:05:12]} 16. bxc3 {[%emt 0:00:23]} Rb8 {[%emt 0:03:28]} 17. a4 {[%emt 0:32:01]} Rb2 {[%emt 0:02:16]} 18. Bxf6 {[%emt 0:00:45]} Bxf6 {[%emt 0:00:28]} 19. Nxd7 {[%emt 0:00:05]} Qxd7 {[%emt 0:06:44]} 20. Bb5 {[%emt 0:00:33]} Nxd4 {[%emt 0:05:44]} 21. cxd4 {[%emt 0:03:52]} Bxd4+ {[%emt 0:00:03]} 22. Kf1 {[%emt 0:00:16]} Rxb5 {[%emt 0:00:21]} 23. Qxb5 {[%emt 0:00:10]} Qxb5+ {[%emt 0:00:14]} 24. axb5 {[%emt 0:00:06]} Bxa1 {[%emt 0:00:02]} 25. Nb3 {[%emt 0:00:23]} Bf6 {[%emt 0:00:44]} 26. Na5 {[%emt 0:00:25]} Rb8 {[%emt 0:01:56]} 27. Rb3 {[%emt 0:00:19]} Bxh4 {[%emt 0:01:33]} 28. Nc6 {[%emt 0:04:08]} Rb6 {[%emt 0:00:25]} 29. Ne5 {[%emt 0:12:27]} Rb7 {[%emt 0:00:11]} 30. Ke2 {[%emt 0:02:34]} Be7 {[%emt 0:02:32]} 31. Kd3 {[%emt 0:00:42]} Kf8 {[%emt 0:02:38]} 32. Kd4 {[%emt 0:01:01]} Ke8 {[%emt 0:03:10]} 33. b6 {[%emt 0:00:55]} Bd6 {[%emt 0:03:00]} 34. g3 {[%emt 0:00:28]} h5 {[%emt 0:01:07]} 35. Nc6 {[%emt 0:01:09]} Kd7 {[%emt 0:00:47]} 36. Na5 {[%emt 0:00:39]} Rb8 {[%emt 0:00:36]} 37. Rb1 {[%emt 0:00:31]} h4 {[%emt 0:01:54]} 38. gxh4 {[%emt 0:00:27]} Bxf4 {[%emt 0:00:35]} 39. Kc5 {[%emt 0:00:00]} Be3+ {[%emt 0:00:21] Kd4} 0-1

[Event "Elitserien Allsvenskan 2017-18"]
[Site "Lund"]
[Date "2017.10.22"]
[Round "3"]
[White "Johansson, Thomas"]
[Black "Jaderberg, Bjorn"]
[Result "1/2-1/2"]
[ECO "A04"]
[WhiteElo "2221"]
[BlackElo "2151"]
[Annotator "NA"]
[PlyCount "147"]
[EventDate "2017.??.??"]
[EventCountry "SWE"]
[SourceTitle "playchess.com"]
[Source "ChessBase"]
[SourceQuality "1"]
[TimeControl "40/5400+30:1800+30"]

1. Nf3 {[%emt 0:00:00]} e6 {[%emt 0:00:58]} 2. g3 {[%emt 0:02:04]} f5 {[%emt 0:00:19]} 3. Bg2 {[%emt 0:00:08]} Nf6 {[%emt 0:00:11]} 4. d3 {[%emt 0:00:31]} d5 {[%emt 0:02:44]} 5. O-O {[%emt 0:02:13]} Bd6 {[%emt 0:00:48]} 6. c4 {[%emt 0:01:28] A04: Unusual lines after 1 Nf3 and King's Indian Attack} c6 {[%emt 0:00:14]} (6... dxc4 7. dxc4 O-O 8. Nc3 Nc6 9. e4 e5 10. Bg5 Kh8 11. exf5 Bxf5 12. Nh4 Be6 13. Nd5 Qd7 14. Nxf6 gxf6 {0-1 (53) Kramnik,V (2812)-Carlsen,M (2855) Leuven 2016}) 7. Qb3 $146 {[%emt 0:04:59]} ({Predecessor:} 7. b3 O-O 8. Ba3 Bxa3 9. Nxa3 Bd7 10. Nc2 Be8 11. Ncd4 Qe7 12. cxd5 cxd5 13. Rc1 Nc6 14. Nxc6 Bxc6 {1-0 (57) Demidov,M (2524)-Vykouk,J (2430) Pardubice 2017}) 7... Qb6 {[%emt 0:01:49]} 8. Qxb6 {[%emt 0:01:57]} axb6 {[%emt 0:00:09]} 9. Be3 {[%emt 0:01:10]} Nbd7 {[%emt 0:02:52]} 10. Nd4 {[%emt 0:05:27]} Ne5 {[%emt 0:02:26]} 11. cxd5 {[%emt 0:04:41]} exd5 {[%emt 0:00:29]} 12. Nc3 {[%emt 0:02:10]} Bd7 {[%emt 0:01:36]} 13. Nb3 {[%emt 0:01:36]} Ra6 {[%emt 0:03:07]} 14. Rfd1 {[%emt 0:06:47]} Kf7 {[%emt 0:03:52]} 15. Bg5 {[%emt 0:06:26]} Bb4 {[%emt 0:03:24]} 16. a3 {[%emt 0:07:13]} Bxc3 {[%emt 0:00:16]} 17. bxc3 {[%emt 0:00:07]} Rha8 {[%emt 0:01:47]} 18. Bf4 {[%emt 0:01:38]} Ng6 {[%emt 0:01:12]} 19. Bc1 {[%emt 0:00:48]} Re8 {[%emt 0:05:48]} 20. Kf1 {[%emt 0:04:02]} Ra4 {[%emt 0:01:42]} 21. Bb2 {[%emt 0:01:46]} f4 {[%emt 0:01:17]} 22. Nd2 {[%emt 0:02:02]} Ng4 {[%emt 0:03:58]} 23. Nf3 $11 {[%emt 0:06:31]} h6 {[%emt 0:10:48]} 24. Rd2 {[%emt 0:05:09]} N6e5 {[%emt 0:14:17]} 25. Nxe5+ {[%emt 0:05:24]} Nxe5 {[%emt 0:00:43]} 26. Rb1 {[%emt 0:04:45]} Bf5 {[%emt 0:02:49]} 27. Rc1 {[%emt 0:04:09]} b5 {[%emt 0:01:02]} 28. Kg1 {[%emt 0:01:49]} g5 {[%emt 0:00:43]} 29. Rf1 {[%emt 0:00:42]} h5 {[%emt 0:05:02]} 30. Bc1 {[%emt 0:00:36]} h4 {[%emt 0:02:34]} 31. Rb2 {[%emt 0:04:46]} Kf6 {[%emt 0:04:49]} 32. Rb4 {[%emt 0:02:26]} f3 {[%emt 0:00:31]} 33. Bxf3 {[%emt 0:02:40]} Nxf3+ {[%emt 0:00:14]} 34. exf3 {[%emt 0:00:03]} Bxd3 {[%emt 0:01:05]} 35. Rd1 {[%emt 0:00:24]} Bc2 {[%emt 0:00:32]} 36. Rf1 {[%emt 0:00:09]} h3 {[%emt 0:02:32]} 37. Rg4 {[%emt 0:04:11]} Rxg4 {[%emt 0:01:08]} 38. fxg4 {[%emt 0:00:02]} Re2 {[%emt 0:00:11]} 39. Be3 {[%emt 0:00:37]} Be4 {[%emt 0:01:17]} 40. Bd4+ {[%emt 0:01:52]} Kg6 {[%emt 0:30:42]} 41. f3 {[%emt 0:32:06]} Bd3 {[%emt 0:01:49]} 42. Kh1 {[%emt 0:00:00]} Ra2 {[%emt 0:00:00]} 43. Re1 {[%emt 0:00:00]} Be2 {[%emt 0:00:00]} 44. Kg1 {[%emt 0:00:00]} Kf7 {[%emt 0:00:00]} 45. Kf2 {[%emt 0:00:00]} Bc4+ {[%emt 0:00:00]} 46. Kg1 Rxa3 {[%emt 0:00:00]} 47. Re7+ {[%emt 0:00:00]} Kf8 {[%emt 0:00:00]} 48. Bc5 {[%emt 0:00:00]} Rb3 {[%emt 0:00:00]} 49. Rh7+ {[%emt 0:00:00]} Kg8 {[%emt 0:00:00]} 50. Rxh3 {[%emt 0:00:00]} Rxc3 51. Rh5 {[%emt 0:00:00]} Rxf3 {[%emt 0:00:00]} 52. Rxg5+ {[%emt 0:00:00]} Kf7 {[%emt 0:00:00]} 53. Rf5+ {[%emt 0:05:49]} Rxf5 {[%emt 0:00:00]} 54. gxf5 {[%emt 0:00:04]} b6 {[%emt 0:00:00]} 55. Bxb6 {[%emt 0:00:39]} b4 {[%emt 0:00:00]} 56. Kf2 {[%emt 0:00:20]} b3 {[%emt 0:00:00]} 57. Bd4 {[%emt 0:00:05]} c5 {[%emt 0:00:00]} 58. Bb2 {[%emt 0:00:18]} d4 {[%emt 0:00:00]} 59. g4 {[%emt 0:00:53]} Bd5 {[%emt 0:00:15]} 60. g5 {[%emt 0:01:02]} Be4 {[%emt 0:00:24]} 61. f6 {[%emt 0:00:14]} Ke6 {[%emt 0:02:59]} 62. Ke2 {[%emt 0:01:00]} Bg6 {[%emt 0:00:16]} 63. Kd2 {[%emt 0:00:54]} Kf5 {[%emt 0:01:50]} 64. Ba3 {[%emt 0:00:58]} c4 {[%emt 0:00:27]} 65. Bb2 {[%emt 0:00:16]} Ke4 {[%emt 0:01:14]} 66. h4 {[%emt 0:00:20]} Kd5 {[%emt 0:00:23]} 67. Ba1 {[%emt 0:00:13]} Bf7 {[%emt 0:04:58]} 68. Bb2 {[%emt 0:00:18]} Ke5 {[%emt 0:01:47]} 69. Ba1 {[%emt 0:00:09]} c3+ {[%emt 0:00:15]} 70. Bxc3 {[%emt 0:00:05]} dxc3+ {[%emt 0:00:15]} 71. Kxc3 {[%emt 0:00:05]} Kf5 {[%emt 0:00:09]} 72. Kb2 {[%emt 0:00:07]} Kg6 {[%emt 0:00:09]} 73. Kc3 {[%emt 0:00:06]} Kh5 {[%emt 0:00:16]} 74. Kb2 {[%emt 0:00:05]} 1/2-1/2

[Event "Elitserien Allsvenskan 2017-18"]
[Site "Lund"]
[Date "2017.10.22"]
[Round "3"]
[White "Svensson, Mans"]
[Black "Penalver, Osmani"]
[Result "1/2-1/2"]
[ECO "E21"]
[WhiteElo "2166"]
[BlackElo "2240"]
[Annotator "NA"]
[PlyCount "70"]
[EventDate "2017.??.??"]
[EventCountry "SWE"]
[SourceTitle "playchess.com"]
[Source "ChessBase"]
[SourceQuality "1"]
[TimeControl "40/5400+30:1800+30"]

1. d4 {[%emt 0:00:00]} Nf6 {[%emt 0:00:10]} 2. c4 {[%emt 0:00:00]} e6 {[%emt 0:00:10]} 3. Nc3 {[%emt 0:00:00]} Bb4 {[%emt 0:00:18]} 4. Nf3 {[%emt 0:00:00]} b6 {[%emt 0:03:47]} 5. Bg5 {[%emt 0:00:18]} h6 {[%emt 0:02:07]} 6. Bh4 {[%emt 0:00:11]} g5 {[%emt 0:12:23]} 7. Bg3 {[%emt 0:00:17]} Ne4 {[%emt 0:00:43]} 8. Qc2 {[%emt 0:00:07]} Bb7 {[%emt 0:01:35]} 9. e3 {[%emt 0:00:23]} Bxc3+ {[%emt 0:01:30]} 10. bxc3 {[%emt 0:00:08]} d6 $11 {[%emt 0:01:03]} 11. Bd3 {[%emt 0:01:13]} Nxg3 {[%emt 0:08:36]} 12. fxg3 {[%emt 0:01:22]} c5 {[%emt 0:00:56]} 13. O-O {[%emt 0:01:04]} Qe7 {[%emt 0:01:54]} 14. Nd2 {[%emt 0:09:09]} Nc6 {[%emt 0:03:49]} 15. Ne4 {[%emt 0:08:32]} O-O-O {[%emt 0:01:04]} 16. Nf6 {[%emt 0:02:20]} Kb8 {[%emt 0:02:10]} 17. Rae1 {[%emt 0:10:12]} Rc8 {[%emt 0:01:32]} 18. Qf2 {[%emt 0:27:33]} Rc7 {[%emt 0:01:42]} 19. g4 {[%emt 0:05:17]} Na5 {[%emt 0:01:35]} 20. d5 {[%emt 0:06:24]} exd5 {[%emt 0:01:13]} 21. Nxd5 {[%emt 0:01:28]} Bxd5 {[%emt 0:00:08]} 22. cxd5 {[%emt 0:00:06]} c4 {[%emt 0:00:15]} 23. Bc2 {[%emt 0:00:20]} Qe5 {[%emt 0:01:14]} 24. Qf6 {[%emt 0:00:21]} Re7 {[%emt 0:13:23]} 25. Rf5 {[%emt 0:02:27]} Qxf6 {[%emt 0:00:36]} 26. Rxf6 {[%emt 0:00:09]} Nb7 {[%emt 0:00:31]} 27. e4 {[%emt 0:03:54]} Kc7 {[%emt 0:01:14]} 28. Ref1 {[%emt 0:00:43]} Nd8 {[%emt 0:00:45]} 29. R1f3 {[%emt 0:00:18]} h5 {[%emt 0:04:46]} 30. Rh3 {[%emt 0:03:50]} h4 {[%emt 0:00:23]} 31. g3 {[%emt 0:00:55]} Re5 {[%emt 0:00:30]} 32. gxh4 {[%emt 0:00:26]} gxh4 {[%emt 0:00:07]} 33. Rhf3 {[%emt 0:02:21]} Kd7 {[%emt 0:03:46]} 34. h3 {[%emt 0:01:08]} Ke7 {[%emt 0:00:13]} 35. Kf2 {[%emt 0:00:15]} Rh7 {[%emt 0:01:20]} 1/2-1/2